bitfinex/quotes_SOLUSD_20220228
["timestamp","ask_amount","ask_price","bid_price","bid_amount"]
[1646017676926,23.5583,86.74,86.671,23.2092]
[1646017677127,1.86682163,86.739,86.671,23.2092]
[1646017682433,4.613,86.738,86.671,23.2092]
[1646017683133,4.613,86.738,86.659,22.953]
[1646017683533,1.27515184,86.737,86.659,22.953]
[1646017683733,4.613,86.736,86.659,22.953]
[1646017684141,1.27515184,86.737,86.659,22.953]
[1646017684334,1.86682163,86.739,86.659,22.953]
[1646017686137,115.56682163,86.739,86.641,23.3861]
[1646017686338,115.15134504,86.729,86.641,23.3861]
[1646017686538,113.7,86.727,86.621,24.8331]
[1646017686742,113.7,86.725,86.621,24.8331]
[1646017686940,5.98130318,86.724,86.621,24.8331]
[1646017687142,1.27526694,86.723,86.622,45.88763449]
[1646017687344,17.3236,86.71,86.622,45.88763449]
[1646017687542,50.67016348,86.709,86.623,24.7351]
[1646017687745,1.8183392,86.708,86.623,24.7351]
[1646017688944,1.8183392,86.708,86.624,6.0]
[1646017689845,1.8183392,86.708,86.623,24.7351]
[1646017690344,1.8183392,86.708,86.624,6.0]
[1646017690544,1.8183392,86.708,86.623,24.7351]
[1646017690947,1.8183392,86.708,86.624,6.0]
[1646017691246,1.8183392,86.708,86.623,24.7351]
[1646017691847,1.8183392,86.708,86.624,6.0]
[1646017692045,1.8183392,86.708,86.623,24.7351]
[1646017692346,1.8183392,86.708,86.624,6.0]
[1646017692746,1.8183392,86.708,86.623,24.7351]
[1646017692946,1.8183392,86.708,86.624,6.0]
[1646017693159,48.9122,86.709,86.624,113.7]
[1646017693361,48.9122,86.709,86.626,113.7]
[1646017693562,48.9122,86.709,86.64,14.05]
[1646017693760,48.9122,86.709,86.641,24.9031]
[1646017694161,48.9122,86.709,86.642,6.0]
[1646017694864,0.54887313,86.707,86.642,6.0]
[1646017695462,0.54887313,86.707,86.643,113.7]
[1646017695761,0.54887313,86.707,86.645,113.7]
[1646017695965,0.54887313,86.707,86.647,113.7]
[1646017696166,0.54887313,86.707,86.651,47.01221632]
[1646017696361,0.54887313,86.707,86.652,6.0]
[1646017696562,0.54887313,86.707,86.653,23.0413]
[1646017696764,0.54887313,86.707,86.654,6.0]
[1646017700164,2.04218736,86.742,86.654,6.0]
[1646017700766,1.27952547,86.741,86.654,6.0]
[1646017700968,1.27952547,86.741,86.655,113.7]
[1646017701165,1.27952547,86.741,86.656,6.0]
[1646017701370,1.27952547,86.741,86.654,6.0]
[1646017703571,2.04218736,86.742,86.654,6.0]
[1646017703973,1.27974015,86.741,86.654,6.0]
[1646017704172,1.27974015,86.741,86.655,113.7]
[1646017704371,1.27974015,86.741,86.661,113.7]
[1646017704574,1.83362539,86.741,86.663,113.7]
[1646017704770,0.55388524,86.741,86.665,113.7]
[1646017704972,0.55388524,86.741,86.667,113.7]
[1646017705172,0.55388524,86.741,86.668,119.7]
[1646017705472,0.55388524,86.741,86.669,6.0]
[1646017705676,0.55388524,86.741,86.67,23.4142]
[1646017705872,0.55388524,86.741,86.671,6.0]
[1646017707072,0.55388524,86.741,86.672,113.7]
[1646017707273,0.55388524,86.741,86.674,113.7]
[1646017707474,0.55388524,86.741,86.676,113.7]
[1646017707676,0.55388524,86.741,86.679,43.95088781]
[1646017708278,0.55388524,86.741,86.691,113.7]
[1646017708476,0.55388524,86.741,86.693,113.7]
[1646017708677,0.55388524,86.741,86.692,29.2856]
[1646017708678,0.55388524,86.741,86.695,113.7]
[1646017708877,0.55388524,86.741,86.694,6.0]
[1646017708878,0.55388524,86.741,86.697,113.7]
[1646017709084,0.55388524,86.741,86.698,119.7]
[1646017709277,0.55388524,86.741,86.698,113.7]
[1646017709478,0.55388524,86.741,86.7,14.05]
[1646017709678,0.55388524,86.741,86.701,6.0]
[1646017709977,2.21630932,86.778,86.701,6.0]
[1646017710479,2.21630932,86.778,86.702,24.3972]
[1646017710680,1.27919046,86.777,86.703,6.0]
[1646017712187,2.21630932,86.778,86.703,6.0]
[1646017712983,1.27879273,86.777,86.703,6.0]
[1646017713983,2.21630932,86.778,86.703,6.0]
[1646017714187,4.611,86.777,86.679,43.95088781]
[1646017714386,1.6646764,86.775,86.679,43.95088781]
[1646017714586,4.612,86.774,86.679,43.95088781]
[1646017714785,1.75905128,86.773,86.679,43.95088781]
[1646017714985,24.1036,86.772,86.682,23.2862]
[1646017715186,5.99221729,86.771,86.682,23.2862]
[1646017715386,113.7,86.77,86.682,23.2862]
[1646017715585,6.34346286,86.769,86.682,23.2862]
[1646017715785,1.51464102,86.767,86.682,23.2862]
[1646017716086,4.612,86.766,86.682,23.2862]
[1646017716386,2.86732347,86.765,86.683,44.51280308]
[1646017716585,4.612,86.764,86.683,44.51280308]
[1646017716789,5.89074321,86.764,86.683,44.51280308]
[1646017717187,1.27874321,86.763,86.683,44.51280308]
[1646017717388,4.612,86.762,86.683,44.51280308]
[1646017717587,17.313,86.75,86.683,44.51280308]
[1646017717787,24.2163,86.749,86.683,44.51280308]
[1646017719193,24.2163,86.749,86.684,113.7]
[1646017719413,17.31,86.77,86.683,44.51280308]
[1646017719414,1.47689791,86.778,86.686,113.7]
[1646017719617,23.5524,86.769,86.69,14.05]
[1646017719811,0.55756811,86.766,86.69,14.05]
[1646017720012,0.55756811,86.766,86.691,6.0]
[1646017720213,0.55756811,86.766,86.692,23.0735]
[1646017720412,0.55756811,86.766,86.693,6.0]
[1646017723914,0.55756811,86.766,86.694,113.7]
[1646017724116,0.55756811,86.766,86.696,113.7]
[1646017724314,0.55756811,86.766,86.71,14.05]
[1646017724614,0.55756811,86.766,86.711,85.34329344]
[1646017725014,23.78349903,86.783,86.711,85.34329344]
[1646017725414,1.27962991,86.782,86.711,85.34329344]
[1646017725715,1.27962991,86.782,86.712,113.7]
[1646017726014,1.27962991,86.782,86.714,113.7]
[1646017726214,1.27962991,86.782,86.716,113.7]
[1646017726415,1.27962991,86.782,86.718,113.7]
[1646017726615,0.55859903,86.783,86.72,127.75]
[1646017726816,0.55859903,86.783,86.722,113.7]
[1646017727015,0.55859903,86.783,86.724,113.7]
[1646017727218,0.55859903,86.783,86.726,113.7]
[1646017727417,0.55859903,86.783,86.731,113.7]
[1646017727616,0.55859903,86.783,86.733,113.7]
[1646017727818,0.55859903,86.783,86.735,113.7]
[1646017728015,0.55859903,86.783,86.737,113.7]
[1646017728216,0.55859903,86.783,86.738,176.89616047]
[1646017728416,0.55859903,86.783,86.739,6.0]
[1646017730217,13.35793383,86.792,86.739,6.0]
[1646017730819,13.35793383,86.792,86.731,6.0]
[1646017731719,13.35793383,86.792,86.732,44.80115259]
[1646017732419,13.35793383,86.792,86.733,6.0]
[1646017732624,13.35793383,86.792,86.732,44.80115259]
[1646017732818,23.3694,86.791,86.732,44.80115259]
[1646017733622,23.3694,86.791,86.73,14.05]
[1646017733823,1.81324982,86.79,86.725,24.9044]
[1646017734422,1.27763147,86.789,86.725,24.9044]
[1646017734826,2.88629415,86.789,86.725,24.9044]
[1646017735226,2.88629415,86.789,86.69,31.5349]
[1646017735227,1.27763147,86.788,86.69,18.66]
[1646017735424,1.27763147,86.788,86.691,24.6827]
[1646017735425,120.18329258,86.787,86.691,24.6827]
[1646017735628,1.84946641,86.786,86.691,24.6827]
[1646017735825,118.311,86.785,86.691,24.6827]
[1646017736025,1.68993478,86.784,86.691,24.6827]
[1646017736226,118.311,86.783,86.691,24.6827]
[1646017736426,113.7,86.779,86.683,52.31144676]
[1646017736625,1.6594045,86.776,86.683,52.31144676]
[1646017736825,4.612,86.775,86.683,52.31144676]
[1646017737227,2.67170793,86.774,86.683,52.31144676]
[1646017737429,6.05084951,86.773,86.683,52.31144676]
[1646017737629,51.97703493,86.773,86.683,52.31144676]
[1646017737829,1.77938704,86.772,86.683,52.31144676]
[1646017738028,6.47939658,86.771,86.683,52.31144676]
[1646017738232,17.3134,86.75,86.683,52.31144676]
[1646017738431,28.26874544,86.749,86.684,22.5101]
[1646017740632,31.01553465,86.749,86.684,22.5101]
[1646017741232,48.28373465,86.749,86.684,22.5101]
[1646017742334,45.53694544,86.749,86.684,22.5101]
[1646017742533,1.59241863,86.748,86.684,22.5101]
[1646017742733,4.33920784,86.748,86.684,22.5101]
[1646017742946,2.74678921,86.747,86.684,22.5101]
[1646017748345,0.55491666,86.748,86.684,22.5101]
[1646017749145,0.55462198,86.746,86.684,22.5101]
[1646017749949,0.55462198,86.746,86.685,6.0]
[1646017750248,0.55462198,86.746,86.684,22.5101]
[1646017752252,2.74678921,86.745,86.684,22.5101]
[1646017753551,27.1071525,86.744,86.647,45.8927]
[1646017753752,6.34951062,86.743,86.648,24.7914]
[1646017754055,9.09629983,86.743,86.648,24.7914]
[1646017754252,2.74678921,86.742,86.648,24.7914]
[1646017754453,5.47408621,86.742,86.649,6.0]
[1646017754653,31.3651,86.74,86.65,46.67662601]
[1646017754852,6.26919177,86.739,86.65,46.67662601]
[1646017755053,39.39634427,86.739,86.65,46.67662601]
[1646017755253,29.81093258,86.738,86.65,46.67662601]
[1646017755453,30.57222368,86.737,86.65,46.67662601]
[1646017755657,1.86841274,86.736,86.65,46.67662601]
[1646017755859,17.3187,86.72,86.65,46.67662601]
[1646017756055,3.01966943,86.719,86.65,46.67662601]
[1646017756256,1.59604803,86.718,86.65,46.67662601]
[1646017758863,1.10514734,86.718,86.65,46.67662601]
[1646017759063,42.91775397,86.719,86.65,46.67662601]
[1646017760673,45.66454318,86.719,86.65,46.67662601]
[1646017763275,28.16654318,86.719,86.65,46.67662601]
[1646017764576,0.55049513,86.718,86.65,46.67662601]
[1646017764777,0.55049513,86.718,86.651,116.49284064]
[1646017764976,0.55049513,86.718,86.653,113.7]
[1646017765177,0.55049513,86.718,86.655,113.7]
[1646017765377,0.55049513,86.718,86.657,113.7]
[1646017765578,0.55049513,86.718,86.659,113.7]
[1646017765778,0.55049513,86.718,86.661,113.7]
[1646017765979,0.55049513,86.718,86.663,113.7]
[1646017766180,0.55049513,86.718,86.665,113.7]
[1646017767379,0.55049513,86.718,86.667,113.7]
[1646017767680,0.55049513,86.718,86.668,6.0]
[1646017768381,0.55049513,86.718,86.667,113.7]
[1646017768586,0.55049513,86.718,86.661,113.7]
[1646017768787,0.55049513,86.718,86.663,113.7]
[1646017769389,0.55049513,86.718,86.665,113.7]
[1646017769588,0.55152719,86.739,86.667,113.7]
[1646017769792,0.55152719,86.739,86.67,14.05]
[1646017769989,0.55152719,86.739,86.671,124.313]
[1646017770191,0.55152719,86.739,86.673,113.7]
[1646017770388,0.55152719,86.739,86.675,113.7]
[1646017770590,0.55152719,86.739,86.677,113.7]
[1646017770788,0.55152719,86.739,86.681,113.7]
[1646017770990,0.55152719,86.739,86.683,113.7]
[1646017771193,0.55152719,86.739,86.685,113.7]
[1646017771393,0.55152719,86.739,86.691,113.7]
[1646017771591,0.55152719,86.739,86.693,113.7]
[1646017771790,0.55152719,86.739,86.695,113.7]
[1646017771991,0.55152719,86.739,86.697,113.7]
[1646017772194,0.55152719,86.739,86.699,113.7]
[1646017772392,0.55152719,86.739,86.701,113.7]
[1646017772692,0.55152719,86.739,86.703,113.7]
[1646017772892,0.55152719,86.739,86.707,113.7]
[1646017773091,0.55152719,86.739,86.708,6.0]
[1646017773291,0.55152719,86.739,86.709,23.2843]
[1646017773491,0.55152719,86.739,86.71,6.0]
[1646017773696,0.55152719,86.739,86.711,113.7]
[1646017773892,0.55152719,86.739,86.712,6.0]
[1646017774092,0.55152719,86.739,86.713,113.7]
[1646017774492,0.05152719,86.739,86.713,113.7]
[1646017774693,0.55462208,86.739,86.715,113.7]
[1646017774891,0.55462208,86.739,86.717,113.7]
[1646017775095,0.55462208,86.739,68.68,10.0]
[1646017775300,40.0,86.738,86.654,24.2748]
[1646017775496,44.4297223,86.738,86.654,24.2748]
[1646017775703,1.77180873,86.737,86.604,50.00595611]
[1646017775903,25.33407604,86.737,86.604,46.9795]
[1646017776100,7.99543939,86.736,86.605,46.5719698]
[1646017776308,17.3172,86.73,86.605,46.5719698]
[1646017776599,66.52687626,86.736,86.572,17.0957]
[1646017776600,1.73346604,86.718,86.572,17.0957]
[1646017776803,115.0958375,86.716,86.572,17.0957]
[1646017777000,113.7,86.714,86.558,49.7376334]
[1646017777300,115.40318957,86.699,86.558,49.7376334]
[1646017777500,113.7,86.679,86.559,44.24557586]
[1646017777700,1.37108245,86.678,86.559,44.24557586]
[1646017777902,113.7,86.669,86.559,44.24557586]
[1646017778103,113.7,86.667,86.559,44.24557586]
[1646017778301,113.7,86.665,86.559,44.24557586]
[1646017778503,113.7,86.663,86.559,44.24557586]
[1646017778702,113.7,86.649,86.559,44.24557586]
[1646017778906,31.384,86.65,86.511,76.07]
[1646017778907,113.7,86.647,86.511,76.07]
[1646017779102,113.7,86.645,86.512,6.0]
[1646017779302,113.7,86.629,86.513,113.7]
[1646017779505,113.7,86.627,86.515,113.7]
[1646017779703,17.3425,86.6,86.517,113.7]
[1646017779912,31.91972091,86.626,86.518,50.62816273]
[1646017780113,1.80232965,86.625,86.518,50.62816273]
[1646017780315,60.33376652,86.625,86.519,116.76710845]
[1646017780513,1.360826,86.624,86.521,113.7]
[1646017780717,4.10761521,86.624,86.523,113.7]
[1646017780915,2.74678921,86.623,86.525,113.7]
[1646017781116,2.74678921,86.623,86.527,113.7]
[1646017781316,2.74678921,86.623,86.529,113.7]
[1646017781517,17.34,86.62,86.531,51.36596434]
[1646017781719,17.34,86.62,86.532,6.0]
[1646017781917,1.50457683,86.619,86.532,6.0]
[1646017782116,1.50457683,86.619,86.532,113.7]
[1646017782317,1.50457683,86.619,86.531,51.36596434]
[1646017782517,1.50457683,86.619,86.532,113.7]
[1646017782719,2.74678921,86.618,86.531,51.36596434]
[1646017783018,2.74678921,86.618,86.532,6.0]
[1646017783820,2.74678921,86.618,86.533,113.7]
[1646017784020,2.74678921,86.618,86.535,113.7]
[1646017784221,2.74678921,86.618,86.537,113.7]
[1646017785520,2.74678921,86.618,86.532,113.7]
[1646017785720,2.74678921,86.618,86.534,113.7]
[1646017785919,2.74678921,86.618,86.536,113.7]
[1646017786121,2.74678921,86.618,86.531,51.36596434]
[1646017786320,17.341,86.61,86.531,51.36596434]
[1646017786524,1.40804502,86.609,86.531,51.36596434]
[1646017786722,4.15483423,86.609,86.531,51.36596434]
[1646017786927,2.74678921,86.608,86.531,51.36596434]
[1646017787329,4.62,86.607,86.531,51.36596434]
[1646017787532,1.83162827,86.599,86.531,51.36596434]
[1646017788137,2.74678921,86.598,86.531,51.36596434]
[1646017788338,4.62,86.597,86.531,51.36596434]
[1646017788737,2.74678921,86.596,86.531,51.36596434]
[1646017789337,4.62,86.595,86.531,51.36596434]
[1646017789637,2.74678921,86.594,86.531,51.36596434]
[1646017793647,17.3451,86.59,86.531,51.36596434]
[1646017793845,1.81005297,86.589,86.531,51.36596434]
[1646017794043,4.55684218,86.589,86.531,51.36596434]
[1646017794446,2.74678921,86.588,86.531,51.36596434]
[1646017794653,0.56430578,86.587,86.531,50.86596434]
[1646017794947,26.02527101,86.587,86.493,2.96641221]
[1646017795146,28.20775444,86.586,86.495,113.7]
[1646017795347,28.20775444,86.586,86.497,113.7]
[1646017795546,2.74678921,86.585,86.499,113.7]
[1646017795746,2.74678921,86.585,86.5,2.9699795]
[1646017795951,4.622,86.597,86.503,3.0382531]
[1646017796147,2.74678921,86.621,86.506,2.72643309]
[1646017796346,2.74678921,86.621,86.501,6.0]
[1646017796347,1.6027859,86.631,86.521,113.7]
[1646017796546,4.62,86.63,86.531,113.7]
[1646017796748,4.619,86.643,86.533,113.7]
[1646017796946,2.74678921,86.629,86.536,2.75730916]
[1646017797145,2.74678921,86.629,86.54,113.7]
[1646017797348,2.74678921,86.629,86.541,6.0]
[1646017797748,2.74678921,86.629,86.542,113.7]
[1646017797949,2.74678921,86.629,86.544,113.7]
[1646017798151,2.74678921,86.629,86.546,113.7]
[1646017798349,2.74678921,86.629,86.547,119.7]
[1646017799051,2.74678921,86.629,86.547,113.7]
[1646017799454,2.74678921,86.629,86.54,116.67456619]
[1646017799654,2.74678921,86.629,86.542,113.7]
[1646017799855,4.619,86.638,86.543,6.0]
[1646017800155,4.619,86.638,86.544,113.2]
[1646017800354,4.619,86.638,86.546,113.2]
[1646017800554,9.13071411,86.639,86.548,113.2]
[1646017800756,2.74678921,86.638,86.549,6.0]
[1646017800954,2.74678921,86.638,86.548,113.2]
[1646017801154,1.87300936,86.637,86.55,113.2]
[1646017801355,24.59429856,86.638,86.554,113.2]
[1646017801574,24.59429856,86.652,86.557,2.39019106]
[1646017801760,2.74678921,86.658,86.56,2.33504169]
[1646017801954,24.59429856,86.665,86.562,113.2]
[1646017802157,24.59429856,86.665,86.565,2.75571848]
[1646017802360,25.47986872,86.665,86.568,60.61606741]
[1646017802557,25.47986872,86.665,86.57,3.10394918]
[1646017802758,28.22665793,86.665,86.572,113.2]
[1646017802957,1.64571364,86.664,86.573,6.0]
[1646017803158,4.617,86.663,86.573,6.0]
[1646017803357,4.617,86.663,86.571,6.0]
[1646017803560,7.36378921,86.663,86.571,6.0]
[1646017804158,7.36378921,86.663,86.572,113.7]
[1646017804359,7.36378921,86.663,86.574,113.7]
[1646017804558,7.36378921,86.663,86.576,113.7]
[1646017804758,7.36378921,86.663,86.577,119.7]
[1646017804958,7.36378921,86.663,86.578,6.0]
[1646017805157,24.59429856,86.662,86.578,6.0]
[1646017805358,4.617,86.661,86.579,113.7]
[1646017805561,24.59429856,86.662,86.58,6.0]
[1646017805759,24.59429856,86.66,86.581,53.68885099]
[1646017806065,1.47345328,86.659,86.582,6.0]
[1646017806966,1.47345328,86.659,86.581,53.68885099]
[1646017807364,1.47345328,86.659,86.582,6.0]
[1646017807566,24.59429856,86.658,86.581,53.68885099]
[1646017807767,1.79871283,86.657,86.581,53.68885099]
[1646017808267,1.79871283,86.657,86.582,6.0]
[1646017808466,1.79871283,86.657,86.581,53.68885099]
[1646017808667,4.617,86.664,86.581,53.68885099]
[1646017808867,0.88557016,86.665,86.581,53.68885099]
[1646017809470,0.88557016,86.665,86.582,6.0]
[1646017809869,0.88557016,86.665,86.583,6.0]
[1646017810068,0.88557016,86.665,86.582,6.0]
[1646017810268,0.88557016,86.665,86.581,53.68885099]
[1646017810968,0.88557016,86.665,86.582,6.0]
[1646017811768,0.88557016,86.665,86.581,53.68885099]
[1646017812467,0.88557016,86.665,86.582,6.0]
[1646017812869,0.88557016,86.665,86.581,53.68885099]
[1646017813392,0.88557016,86.665,86.582,6.0]
[1646017814194,4.617,86.668,86.583,113.7]
[1646017814393,4.617,86.683,86.585,113.7]
[1646017814694,4.617,86.684,86.588,2.65312546]
[1646017814892,1.82562985,86.685,86.59,113.7]
[1646017815192,1.18702024,86.674,86.592,113.7]
[1646017815392,4.617,86.684,86.593,6.0]
[1646017815592,1.82562985,86.685,86.593,6.0]
[1646017815991,1.82562985,86.685,86.587,6.0]
[1646017816191,4.617,86.684,86.587,6.0]
[1646017816392,1.11423781,86.677,86.586,6.0]
[1646017816593,1.11423781,86.677,86.587,113.7]
[1646017816793,1.11423781,86.677,86.589,113.7]
[1646017816992,1.82562985,86.685,86.591,113.7]
[1646017817195,1.82562985,86.685,86.593,113.7]
[1646017817393,4.617,86.684,86.594,6.0]
[1646017817994,0.85230077,86.674,86.595,52.66112078]
[1646017818397,2.5704322,86.674,86.596,6.0]
[1646017819193,25.44659933,86.674,86.596,6.0]
[1646017819394,1.59179679,86.673,86.596,6.0]
[1646017819595,17.3291,86.67,86.595,52.66112078]
[1646017819896,1.86656188,86.669,86.595,52.66112078]
[1646017820095,4.617,86.668,86.595,52.66112078]
[1646017820594,17.3291,86.67,86.595,52.66112078]
[1646017820794,17.3291,86.67,86.596,6.0]
[1646017821798,16.8291,86.67,86.596,6.0]
[1646017821995,16.8291,86.67,86.597,6.0]
[1646017822700,16.8291,86.67,86.598,6.0]
[1646017823098,0.85230077,86.674,86.599,113.7]
[1646017823301,0.85230077,86.674,86.601,113.7]
[1646017823500,0.85230077,86.674,86.603,113.7]
[1646017823699,4.616,86.684,86.605,113.7]
[1646017823899,24.68,86.696,86.606,122.16785432]
[1646017824099,24.68,86.696,86.607,2.94975156]
[1646017824299,24.68,86.696,86.61,2.5068575]
[1646017824499,24.68,86.696,86.612,113.7]
[1646017824701,0.9402144,86.692,86.614,113.7]
[1646017824901,0.9402144,86.692,86.616,113.7]
[1646017825700,0.9402144,86.692,86.617,6.0]
[1646017825905,24.68,86.696,86.617,6.0]
[1646017826803,24.68,86.696,86.616,113.7]
[1646017827004,24.68,86.696,86.614,113.7]
[1646017827304,24.68,86.696,86.616,113.7]
[1646017827505,24.68,86.696,86.617,6.0]
[1646017828204,0.97031033,86.695,86.617,6.0]
[1646017828605,0.97031033,86.695,86.616,113.7]
[1646017829405,0.97031033,86.695,86.617,6.0]
[1646017829605,0.97031033,86.695,86.616,113.7]
[1646017829807,0.97031033,86.695,86.617,6.0]
[1646017830510,0.97031033,86.695,86.614,113.7]
[1646017830711,0.97031033,86.695,86.616,113.7]
[1646017830911,0.97031033,86.695,86.617,6.0]
[1646017831611,24.68,86.696,86.617,6.0]
[1646017831812,24.68,86.696,86.616,113.7]
[1646017832014,24.68,86.696,86.617,6.0]
[1646017832412,24.68,86.696,86.616,113.7]
[1646017832614,0.89827249,86.695,86.616,113.7]
[1646017832814,0.89827249,86.695,86.617,6.0]
[1646017833012,0.89827249,86.695,86.616,113.7]
[1646017833219,0.89827249,86.695,86.617,6.0]
[1646017833615,24.68,86.696,86.617,6.0]
[1646017834316,24.68,86.696,86.616,113.7]
[1646017834616,25.65399846,86.696,86.617,6.0]
[1646017834816,1.43352398,86.695,86.617,6.0]
[1646017835016,1.43352398,86.695,86.613,43.82241165]
[1646017835319,1.43352398,86.695,86.614,6.0]
[1646017837119,1.43352398,86.695,86.613,43.82241165]
[1646017837418,1.43352398,86.695,86.614,6.0]
[1646017838521,1.67232842,86.694,86.614,6.0]
[1646017838820,26.26662698,86.694,86.614,6.0]
[1646017839020,1.53515233,86.693,86.614,6.0]
[1646017839444,1.53515233,86.693,86.613,43.82241165]
[1646017839843,1.53515233,86.693,86.614,6.0]
[1646017840944,24.59429856,86.693,86.614,6.0]
[1646017841145,1.8148303,86.692,86.613,43.82241165]
[1646017841345,1.8148303,86.692,86.614,6.0]
[1646017843050,1.8148303,86.692,86.613,43.82241165]
[1646017843247,1.8148303,86.692,86.614,6.0]
[1646017844550,1.8148303,86.692,86.613,43.82241165]
[1646017844949,1.8148303,86.692,86.614,6.0]
[1646017845352,17.3249,86.69,86.615,6.0]
[1646017845555,6.28505628,86.689,86.613,43.82241165]
[1646017845753,26.26335484,86.689,86.613,43.82241165]
[1646017845951,24.59429856,86.688,86.613,43.82241165]
[1646017846152,6.41371014,86.687,86.613,43.82241165]
[1646017846352,1.79771014,86.687,86.613,43.82241165]
[1646017846551,29.21029856,86.686,86.613,43.82241165]
[1646017846752,1.38021436,86.685,86.613,43.82241165]
[1646017846952,4.616,86.684,86.613,43.82241165]
[1646017847152,17.3271,86.68,86.604,4.615]
[1646017847352,4.616,86.679,86.604,4.615]
[1646017847552,113.7,86.678,86.571,22.5912]
[1646017847752,113.7,86.676,86.572,6.0]
[1646017847954,1.81414143,86.675,86.572,6.0]
[1646017848259,113.7,86.659,86.532,35.4024]
[1646017848454,14.05,86.65,86.533,47.8425]
[1646017848655,14.05,86.64,86.533,47.8425]
[1646017848855,1.52411962,86.638,86.533,47.8425]
[1646017849054,4.619,86.637,86.533,47.8425]
[1646017849354,1.36570585,86.636,86.534,54.49582895]
[1646017849555,4.619,86.635,86.534,54.49582895]
[1646017849755,48.76394737,86.635,86.535,113.7]
[1646017849955,17.72460593,86.635,86.538,2.48098515]
[1646017850155,22.6721,86.639,86.541,2.33859325]
[1646017850355,22.6721,86.639,86.544,2.82342505]
[1646017850555,22.6721,86.639,86.545,6.0]
[1646017850862,113.7,86.637,86.542,2.74678921]
[1646017851057,27.34108777,86.638,86.526,113.7]
[1646017851058,1.37314594,86.636,86.526,113.7]
[1646017851257,4.619,86.635,86.526,113.7]
[1646017851458,30.73842801,86.635,86.526,113.7]
[1646017851654,16.94460593,86.634,86.526,113.7]
[1646017851859,14.05,86.63,86.526,113.7]
[1646017852054,6.09564502,86.629,86.526,113.7]
[1646017852255,17.34,86.62,86.526,113.7]
[1646017852460,29.2534699,86.619,86.526,113.7]
[1646017852657,1.86307358,86.618,86.526,113.7]
[1646017853056,4.60986279,86.618,86.526,113.7]
[1646017853257,2.74678921,86.617,86.526,113.7]
[1646017853459,2.74678921,86.617,86.506,113.7]
[1646017853659,1.6615595,86.609,86.506,113.7]
[1646017853857,4.621,86.608,86.506,113.7]
[1646017854057,24.31239514,86.608,86.506,113.7]
[1646017854258,23.1991,86.607,86.506,113.7]
[1646017854460,1.81563116,86.606,86.507,55.42014874]
[1646017854762,21.5070263,86.606,86.507,49.42014874]
[1646017854962,23.28867436,86.605,86.507,49.42014874]
[1646017855159,1.76472824,86.604,86.507,49.42014874]
[1646017855361,4.51151745,86.604,86.507,49.42014874]
[1646017855561,1.67238162,86.599,86.507,49.42014874]
[1646017855962,2.74678921,86.598,86.507,49.42014874]
[1646017856161,1.60123954,86.596,86.507,49.42014874]
[1646017856562,2.74678921,86.595,86.507,49.42014874]
[1646017856763,4.61556991,86.595,86.507,49.42014874]
[1646017856965,17.3456,86.59,86.507,49.42014874]
[1646017857163,17.3456,86.59,86.492,47.0259]
[1646017857164,4.621,86.589,86.492,47.0259]
[1646017857362,33.42286263,86.589,86.493,6.0]
[1646017857565,1.79263772,86.588,86.493,6.0]
[1646017857763,4.622,86.587,86.493,6.0]
[1646017857962,1.79263772,86.588,86.493,6.0]
[1646017858161,17.3468,86.58,86.494,58.44544538]
[1646017858362,17.3468,86.58,86.495,6.0]
[1646017858363,1.42123876,86.579,86.495,6.0]
[1646017858564,1.42123876,86.579,86.494,58.44544538]
[1646017858861,1.42123876,86.579,86.495,6.0]
[1646017859261,1.42123876,86.579,86.494,58.44544538]
[1646017859662,1.42123876,86.579,86.495,6.0]
[1646017860164,1.42123876,86.579,86.496,113.7]
[1646017860464,17.3468,86.58,86.498,113.7]